bitfinex-derivatives/quotes_ETHF0:USTF0_20250103
["timestamp","ask_amount","ask_price","bid_price","bid_amount"]
[1735920949945,5.1854,3589.7,3589.6,0.27878]
[1735920950540,5.1854,3589.7,3589.5,2.12085209]
[1735920950737,0.27879,3589.6,3589.3,0.2788]
[1735920951044,5.1854,3589.7,3589.5,0.27879]
[1735920952041,0.27879,3589.6,3589.2,3.2078]
[1735920952353,5.1854,3589.7,3589.5,0.27879]
[1735920952548,5.1854,3589.7,3589.2,3.2078]
[1735920952851,5.46419,3589.7,3589.5,0.27879]
[1735920953043,5.1854,3589.7,3589.2,3.2078]
[1735920953238,5.46418,3589.7,3589.5,0.27879]
[1735920953751,5.1854,3589.7,3589.2,3.2078]
[1735920953945,5.1854,3589.7,3589.4,0.2788]
[1735920954146,0.27879,3589.6,3589.2,3.2078]
[1735920954343,5.1854,3589.7,3589.5,0.27879]
[1735920954650,5.1854,3589.7,3589.6,0.27879]
[1735920954947,5.1854,3589.7,3589.3,2.12085209]
[1735920955143,0.27879,3589.6,3589.4,0.2788]
[1735920955355,5.46418,3589.7,3589.4,0.2788]
[1735920955849,0.27879,3589.6,3589.4,0.2788]
[1735920956247,5.60372569,3589.7,3589.0,2.12085209]
[1735920956448,5.88250569,3589.7,3589.4,0.27879]
[1735920956849,5.60372569,3589.7,3589.5,0.27879]
[1735920957038,5.88250569,3589.7,3589.5,0.27879]
[1735920957242,5.60372569,3589.7,3589.0,2.12085209]
[1735920957444,0.41832569,3589.6,3589.5,0.27879]
[1735920958956,3.70030439,3589.6,3589.5,0.27879]
[1735920961655,3.2819787,3589.6,3589.5,0.27879]
[1735920962746,1.3228548,3589.8,3589.7,0.27878]
[1735920962951,4.89095928,3590.1,3590.0,0.27876]
[1735920964061,4.89095928,3590.1,3590.0,2.39961209]
[1735920964258,4.89095928,3590.1,3590.0,7.39961209]
[1735920964259,4.39095928,3590.1,3590.0,7.39961209]
[1735920964466,3.89095928,3590.1,3590.0,7.39961209]
[1735920964651,6.5846435,3590.5,3590.4,0.27872]
[1735920964652,0.049,3590.5,3590.4,0.27872]
[1735920964857,0.049,3590.5,3590.4,5.60737209]
[1735920965259,0.46720903,3590.6,3590.5,0.27872]
[1735920965461,0.46720903,3590.6,3590.5,5.27872]
[1735920965757,0.46720903,3590.6,3590.5,0.27872]
[1735920965955,0.46720903,3590.6,3590.5,5.27872]
[1735920966156,6.5846435,3591.4,3591.3,0.27865]
[1735920966357,0.049,3591.4,3591.3,2.39950209]
[1735920967163,2.5417,3591.9,3591.8,0.27862]
[1735920967559,2.5417,3591.9,3591.6,0.27863]
[1735920967958,2.5417,3591.9,3591.3,2.12085209]
[1735920968260,3.48642,3591.8,3591.4,0.27865]
[1735920968461,3.2078,3591.8,3591.2,3.2078]
[1735920968653,0.27863,3591.7,3591.3,0.27865]
[1735920968852,3.2078,3591.4,3590.7,3.2078]
[1735920969063,2.4645,3591.3,3590.8,2.12085209]
[1735920969452,2.5102,3591.2,3591.0,0.27867]
[1735920969652,2.5102,3591.2,3590.9,0.27868]
[1735920969964,2.5102,3591.2,3590.8,2.12085209]
[1735920970162,0.27867,3591.1,3590.8,2.12085209]
[1735920970660,3.2078,3591.0,3590.5,2.12085209]
[1735920970962,0.27869,3590.9,3590.5,2.39956209]
[1735920971159,2.5506,3590.8,3590.5,2.12085209]
[1735920971359,2.5506,3590.8,3589.8,3.7933]
[1735920971360,2.5506,3590.8,3590.2,2.12085209]
[1735920971561,0.27873,3590.4,3590.2,2.12085209]
[1735920971765,5.1852,3590.3,3590.2,2.12085209]
[1735920971956,5.46393,3590.3,3589.9,2.39961209]
[1735920972157,5.1852,3590.3,3589.9,2.12085209]
[1735920972356,5.1852,3590.3,3589.4,3.2078]
[1735920972560,5.1852,3590.3,3589.8,0.27877]
[1735920972561,0.27874,3590.2,3589.8,0.27877]
[1735920972766,0.27878,3589.8,3589.6,2.12085209]
[1735920973064,2.79678,3589.7,3589.4,0.2788]
[1735920973365,2.79678,3589.7,3589.3,2.12085209]
[1735920973366,2.518,3589.7,3589.3,2.12085209]
[1735920973565,2.6723,3589.6,3588.6,0.3289843]
[1735920973866,5.32865209,3589.0,3588.5,4.27350773]
[1735920974167,0.27887,3588.5,3588.4,2.33791876]
[1735920974363,3.2078,3588.6,3588.4,2.33791876]
[1735920974565,5.7258,3588.6,3588.1,8.55402501]
[1735920974765,0.27889,3588.3,3588.1,8.55402501]
[1735920974960,5.7258,3588.6,3587.3,3.2078]
[1735920974961,3.2078,3588.2,3587.3,3.2078]
[1735920975269,3.2078,3588.2,3587.8,2.39977209]
[1735920975567,3.78,3588.6,3588.3,0.27888]
[1735920975568,3.2078,3588.6,3588.3,0.27888]
[1735920975755,3.2078,3588.6,3588.2,0.27889]
[1735920975962,0.27885,3588.8,3588.1,2.12085209]
[1735920976162,0.27885,3588.8,3588.3,0.27889]
[1735920976364,3.2078,3588.6,3588.3,0.27889]
[1735920976563,0.27886,3588.7,3588.2,0.27889]
[1735920976873,2.80325,3588.9,3588.4,0.27887]
[1735920977062,2.5244,3588.9,3588.1,2.12085209]
[1735920977262,2.642,3588.8,3587.8,5.32865209]
[1735920977557,3.2078,3587.9,3587.5,2.12085209]
[1735920977763,3.2078,3588.4,3587.5,2.12085209]
[1735920977970,0.27891,3588.1,3587.6,0.27894]
[1735920978171,43.2892,3588.3,3587.9,0.27891]
[1735920978570,43.56809,3588.3,3587.8,2.39977209]
[1735920978771,43.2892,3588.3,3587.9,0.27892]
[1735920979383,43.2892,3588.3,3587.5,2.12085209]
[1735920979676,3.2078,3588.0,3587.5,2.39979209]
[1735920979877,3.48672,3588.0,3587.5,2.12085209]
[1735920980075,2.7165,3587.9,3587.5,2.12085209]
[1735920980473,2.7165,3587.9,3587.5,2.39979209]
[1735920980871,2.7165,3587.9,3587.5,2.12085209]
[1735920981066,2.4613,3587.8,3587.5,2.39980209]
[1735920981277,2.4613,3587.8,3587.6,3.2078]
[1735920981478,2.4613,3587.8,3587.7,0.27893]
[1735920981776,3.2078,3588.4,3587.8,0.27892]
[1735920982073,3.2078,3588.4,3587.5,2.12085209]
[1735920982074,2.5265,3588.7,3588.1,2.12085209]
[1735920982281,2.6189,3589.0,3588.9,0.27884]
[1735920982974,2.6189,3589.0,3588.9,3.48664]
[1735920983168,2.5265,3589.5,3588.9,3.48664]
[1735920983169,2.5265,3589.5,3588.9,3.2078]
[1735920983375,2.8977,3589.4,3588.9,3.48664]
[1735920983568,3.2078,3589.3,3588.8,2.12085209]
[1735920983875,2.6189,3589.4,3587.9,0.6973]
[1735920983876,0.27887,3588.6,3588.1,0.2789]
[1735920984077,2.7154,3588.5,3587.9,2.12085209]
[1735920984275,2.5265,3588.4,3587.8,2.68681858]
[1735920984477,2.5265,3588.4,3588.3,0.27889]
[1735920985180,2.5265,3588.4,3588.2,0.27889]
[1735920985369,2.5265,3588.4,3588.3,0.27889]
[1735920985574,5.44398953,3589.7,3589.6,0.27879]
[1735920985871,5.44398953,3589.7,3589.6,1.87938]
[1735920986072,5.7365,3590.5,3589.6,1.60059]
[1735920986273,5.7365,3590.5,3590.4,0.27872]
[1735920986274,2.5287,3590.5,3590.4,0.27872]
[1735920986475,2.5287,3590.5,3590.0,2.68681858]
[1735920986878,2.5287,3590.5,3589.6,1.60059]
[1735920986879,3.48653,3590.4,3589.8,0.27876]
[1735920987179,3.2078,3590.4,3589.6,2.68681858]
[1735920987483,3.2078,3590.4,3590.0,0.27875]
[1735920989079,3.2078,3590.4,3590.2,0.27874]
[1735920989974,3.2078,3590.4,3589.6,5.89461858]
[1735920990476,3.48652,3590.4,3589.9,0.27876]
[1735920990682,3.2078,3590.4,3590.0,0.27875]
[1735920992178,0.27874,3590.3,3589.8,0.27877]
[1735920992379,3.48653,3590.4,3589.9,0.27876]
[1735920992786,3.2078,3590.4,3589.6,5.89461858]
[1735920993077,3.2078,3590.4,3590.0,0.27875]
[1735920993274,3.2078,3590.4,3589.6,5.89461858]
[1735920993478,3.2078,3590.4,3590.0,0.27875]
[1735920994386,3.2078,3590.4,3589.7,0.27878]
[1735920994577,3.48653,3590.4,3590.0,0.27875]
[1735920994979,0.27873,3590.3,3589.9,0.27876]
[1735920995184,3.2078,3590.4,3589.6,3.2078]
[1735920995386,3.2078,3590.4,3590.1,0.27875]
[1735920995685,3.2078,3590.4,3590.3,0.27873]
[1735920995877,10.2767939,3590.9,3590.1,3.2078]
[1735920996078,10.2767939,3590.9,3590.8,0.27869]
[1735920996378,2.5018,3591.1,3590.1,3.2078]
[1735920996379,40.8,3591.0,3590.9,0.27869]
[1735920996583,4.3535939,3591.1,3591.0,0.27868]
[1735920997581,0.27868,3591.0,3590.7,0.27869]
[1735920997783,4.3535939,3591.1,3590.7,0.2787]
[1735920997784,3.2078,3590.8,3590.7,0.2787]
[1735920998084,3.2078,3590.8,3590.6,0.2787]
[1735920998485,3.2078,3590.8,3590.1,3.2078]
[1735920998684,3.2078,3590.8,3590.5,0.27871]
[1735920998984,3.2078,3590.8,3590.1,3.2078]
[1735920999385,3.4865,3590.8,3590.4,0.27872]
[1735921000387,3.2078,3590.8,3590.0,0.27876]
[1735921000691,3.2078,3590.8,3590.5,0.27871]
[1735921001792,3.2078,3590.8,3590.7,0.2787]
[1735921002285,1.67101911,3590.8,3590.7,2.96551858]
[1735921002593,5.9041,3591.2,3591.1,0.27867]
[1735921002783,5.9041,3591.2,3590.7,2.68681858]
[1735921003183,2.6963,3591.2,3591.1,0.27867]
[1735921003386,4.3535939,3591.4,3591.1,0.27867]
[1735921003690,6.19803,3591.6,3591.2,0.27866]
[1735921004087,5.9194,3591.6,3591.3,0.27865]
[1735921004288,5.9194,3591.6,3591.4,0.27864]
[1735921004489,2.7116,3591.6,3591.2,0.27866]
[1735921004691,2.7116,3591.6,3590.7,2.5343]
[1735921004889,0.27864,3591.5,3591.2,0.27866]
[1735921005584,2.99023,3591.6,3591.3,0.27865]
[1735921005787,2.99023,3591.6,3590.7,5.91787858]
[1735921005997,2.7116,3591.6,3591.0,3.2078]
[1735921006198,2.7116,3591.6,3591.3,0.27865]
[1735921006399,2.99023,3591.6,3591.3,0.27865]
[1735921006598,2.7116,3591.6,3591.0,3.2078]
[1735921006800,2.7116,3591.6,3591.3,0.27865]
[1735921006997,2.99024,3591.6,3591.3,0.27865]
[1735921007191,2.7116,3591.6,3591.3,0.27865]
[1735921007392,2.99023,3591.6,3591.3,0.27865]
[1735921007593,2.7116,3591.6,3591.3,0.27865]
[1735921008196,2.7116,3591.6,3591.0,3.2078]
[1735921008693,2.99023,3591.6,3591.3,0.27865]
[1735921009099,0.27864,3591.5,3591.2,0.27866]
[1735921009301,2.99023,3591.6,3591.3,0.27865]
[1735921009490,2.7116,3591.6,3591.0,3.2078]
[1735921009695,0.27864,3591.5,3591.2,0.27866]
[1735921009895,5.9194,3591.6,3590.7,5.91787858]
[1735921010297,0.27864,3591.5,3591.2,0.27866]
[1735921010700,0.27865,3591.4,3591.1,0.27867]
[1735921010995,0.27865,3591.4,3590.7,4.6536758]
[1735921011200,0.27864,3591.5,3591.1,0.27866]
[1735921011398,0.69653,3591.9,3590.7,4.6536758]
[1735921011399,4.6321939,3592.1,3591.4,5.3271758]
[1735921011592,4.6321939,3592.1,3591.8,0.27861]
[1735921011790,4.6321939,3592.1,3591.4,5.3271758]
[1735921011991,4.6321839,3592.1,3591.9,0.2786]
[1735921012193,3.2078,3592.0,3591.9,0.27861]
[1735921012403,4.6321939,3592.1,3591.9,0.27861]
[1735921012601,4.6321939,3592.1,3592.0,0.2786]
[1735921012902,0.2786,3592.1,3591.4,2.8159858]
[1735921013103,0.27859,3592.1,3592.0,0.2786]
[1735921013503,40.8,3592.2,3591.2,3.2078]
[1735921013704,0.27862,3591.9,3591.8,0.27861]
[1735921014004,40.8,3592.2,3591.1,2.1193758]
[1735921014209,0.27861,3591.9,3591.8,0.27861]
[1735921014505,2.6516,3592.3,3592.2,0.27858]
[1735921014699,0.27857,3592.5,3591.7,0.69657]
[1735921014899,4.3535939,3592.7,3592.6,0.27855]
[1735921015200,4.6321439,3592.7,3592.6,0.27855]
[1735921015400,0.27855,3592.6,3592.0,3.2078]
[1735921015602,6.20017,3592.5,3592.3,0.27857]
[1735921015902,0.27857,3592.4,3592.2,0.27858]
[1735921016097,5.9216,3592.5,3591.8,2.68224357]
[1735921016303,4.3535939,3592.7,3592.0,3.2078]
[1735921016508,2.7138,3592.5,3592.2,0.27858]
[1735921016703,0.27857,3592.4,3592.0,0.27859]
[1735921016903,2.7138,3592.5,3591.9,0.27861]
[1735921017103,2.99236,3592.5,3592.2,0.27858]
[1735921017305,2.7138,3592.5,3592.2,0.27858]
[1735921017600,2.99236,3592.5,3592.2,0.27858]
[1735921017797,2.7138,3592.5,3592.3,0.27857]
[1735921018200,2.7138,3592.5,3591.8,2.68224357]
[1735921018601,2.7138,3592.5,3591.8,3.37877357]
[1735921019116,2.99236,3592.5,3592.2,0.27858]
[1735921019502,2.7138,3592.5,3592.3,0.27858]
[1735921019708,2.7138,3592.5,3592.0,3.2078]
[1735921019903,2.7138,3592.5,3592.4,0.27857]
[1735921020208,3.2078,3592.9,3592.8,0.27854]
[1735921020803,3.2078,3592.9,3591.7,0.27862]
[1735921020804,0.2786,3592.1,3591.7,0.27862]
[1735921021012,0.27859,3592.1,3591.4,0.27865]
[1735921021311,3.2078,3592.3,3591.3,2.68224357]
[1735921021512,41.07861,3592.0,3591.4,0.27865]
[1735921021806,40.8,3592.0,3591.3,2.68224357]
[1735921022009,3.2078,3592.3,3591.3,2.68224357]
[1735921022212,3.2078,3591.9,3591.2,0.27866]
[1735921022403,40.8,3591.8,3591.0,2.6102]
[1735921022710,3.2078,3592.3,3591.3,2.68224357]
[1735921022900,0.27862,3591.8,3591.4,0.27864]
[1735921023097,0.27862,3591.8,3591.3,2.68224357]
[1735921023504,0.27861,3591.9,3591.3,2.68224357]
[1735921023707,2.4936,3592.0,3591.3,2.68224357]
[1735921023906,2.5518,3592.1,3591.5,0.27864]
[1735921024109,0.27861,3591.9,3591.5,0.27864]
[1735921024410,0.27862,3591.8,3591.5,0.27864]
[1735921024606,0.27862,3591.8,3591.4,0.27864]
[1735921025007,2.5518,3592.1,3591.4,0.27864]
[1735921025209,2.5518,3592.1,3591.3,2.68224357]
[1735921025409,0.27863,3591.6,3591.3,2.96089357]
[1735921025614,3.2078,3591.9,3591.3,2.68224357]
[1735921026109,3.2078,3591.5,3590.9,2.68224357]
[1735921026420,0.27864,3591.6,3591.2,0.27866]
[1735921026618,5.7773,3591.9,3591.2,0.27866]
[1735921026806,0.27864,3591.6,3591.2,0.27866]
[1735921027114,0.27864,3591.6,3590.9,2.68224357]
[1735921027115,0.27863,3591.7,3591.4,0.27864]
[1735921027706,0.27863,3591.6,3591.0,0.27868]
[1735921028010,0.27863,3591.7,3591.4,0.27864]
[1735921029409,6.46533432,3591.8,3591.0,3.9045]
[1735921029616,6.46533432,3591.8,3591.7,0.27862]
[1735921029912,3.2078,3591.8,3591.3,2.68224357]
[1735921030113,3.2078,3591.8,3591.3,0.27865]
[1735921030311,3.2078,3591.8,3591.0,3.2078]
[1735921030615,4.3535939,3592.0,3591.0,3.2078]
[1735921030616,0.27863,3591.7,3591.4,0.27865]
[1735921030812,0.27863,3591.7,3591.0,3.2078]
[1735921031005,4.3535939,3592.0,3591.0,3.2078]
[1735921031205,0.27864,3591.6,3591.3,0.27865]
[1735921031408,0.27862,3591.7,3591.2,0.27866]
[1735921031610,0.27864,3591.6,3591.3,0.27865]
[1735921031814,0.27864,3591.6,3591.2,0.27866]
[1735921032114,0.27863,3591.7,3591.3,0.27865]
[1735921032501,3.26817339,3591.8,3591.0,3.2078]
[1735921032502,3.6862642,3591.6,3591.4,0.27864]
[1735921032911,3.6862642,3591.6,3591.5,0.27864]
[1735921033308,3.1862642,3591.6,3591.5,0.27864]
[1735921033509,2.6862642,3591.6,3591.5,0.27864]
[1735921034009,2.6862642,3591.6,3591.2,0.27866]
[1735921034010,2.9649042,3591.6,3591.2,0.27866]
[1735921034218,0.27864,3591.6,3591.1,0.27867]
[1735921034407,0.27864,3591.6,3591.2,0.27866]
[1735921034811,5.8940642,3591.8,3591.2,0.27866]
[1735921035017,0.27864,3591.6,3591.0,3.2078]
[1735921035313,4.6322239,3591.7,3591.3,0.27865]
[1735921035515,4.3535939,3591.7,3591.5,0.27863]
[1735921035715,4.3535939,3591.7,3591.0,3.2078]
[1735921035921,0.27863,3591.6,3591.3,0.27865]
[1735921036225,0.27865,3591.4,3591.1,0.27867]
[1735921036421,2.88784,3591.5,3591.2,0.27866]
[1735921036710,2.6092,3591.5,3591.0,2.11890828]
[1735921036921,0.27865,3591.4,3591.1,0.27867]
[1735921037121,2.6092,3591.5,3591.0,2.11890828]
[1735921037322,2.88784,3591.5,3591.2,0.27866]
[1735921037814,0.27865,3591.4,3591.0,2.11890828]
[1735921038018,0.27865,3591.4,3589.2,9.04430771]
[1735921038019,2.11890828,3591.1,3590.2,3.2078]
[1735921038222,0.27867,3591.2,3590.5,0.27872]
[1735921038419,2.6293,3591.3,3590.5,3.2078]
[1735921038621,2.90796,3591.3,3590.5,3.9046]
[1735921038917,2.6293,3591.3,3591.1,3.2078]
[1735921039318,2.6293,3591.3,3591.1,3.48647]
[1735921039516,2.6293,3591.3,3591.1,3.2078]
[1735921039719,2.6092,3591.5,3591.3,0.27865]
[1735921039912,2.6092,3591.5,3591.1,3.2078]
[1735921040214,8.07147338,3591.5,3591.4,0.27865]
[1735921040416,5.46227338,3591.5,3591.1,3.2078]
[1735921040616,0.27865,3591.4,3591.1,3.48647]
[1735921040915,5.46227338,3591.5,3591.1,3.2078]
[1735921041218,0.27865,3591.4,3591.1,0.27867]
[1735921041516,4.37112206,3591.4,3590.9,3.2078]
[1735921041718,0.27865,3591.3,3590.8,0.27869]
[1735921042024,0.27867,3591.2,3590.9,0.27868]
[1735921042220,4.37112206,3591.4,3590.7,2.11890828]
[1735921042414,0.27867,3591.2,3590.9,0.27868]
[1735921042814,0.27868,3591.1,3590.8,0.27869]
[1735921043115,4.37112206,3591.1,3590.9,0.27868]
[1735921043315,4.64979206,3591.1,3590.8,0.27869]
[1735921043512,4.37112206,3591.1,3590.9,0.27868]
[1735921043919,4.37112206,3591.1,3590.7,2.11890828]
[1735921044115,4.37112206,3591.1,3590.8,0.27869]
[1735921044420,4.37112206,3591.1,3590.9,0.27868]
[1735921045322,4.64980206,3591.1,3590.8,0.27869]
[1735921045614,4.37112206,3591.1,3590.7,2.11890828]
[1735921045819,4.37112206,3591.1,3590.9,0.27868]
[1735921046522,4.37112206,3591.1,3590.7,2.11890828]
[1735921047022,4.64979206,3591.1,3590.7,2.11890828]
[1735921047221,4.37112206,3591.0,3590.9,0.27868]
[1735921048219,4.78162174,3591.1,3590.7,2.11890828]
[1735921048421,4.78162174,3591.1,3590.9,3.2078]
[1735921048820,4.78162174,3591.1,3591.0,0.27868]
[1735921049438,5.74094338,3591.2,3590.9,3.48648]
[1735921049736,5.74094338,3591.2,3590.9,3.48649]
[1735921049933,5.74094338,3591.2,3591.0,0.27868]
[1735921050127,5.46227338,3591.2,3590.7,2.11890828]
[1735921050335,0.27869,3590.9,3590.6,0.27871]
[1735921050528,2.6141,3590.8,3590.2,2.6033]
[1735921050835,2.6141,3590.8,3590.7,0.2787]
[1735921051229,4.73300828,3590.8,3590.0,3.2078]
[1735921051433,0.27876,3590.0,3589.6,0.27878]
[1735921051634,0.69682,3590.4,3589.6,3.48658]
[1735921051833,0.27877,3589.9,3589.6,3.48658]
[1735921052034,43.99815,3590.3,3589.6,3.2078]
[1735921052242,0.69686,3590.2,3589.6,3.2078]
[1735921052435,0.2788,3589.5,3589.3,5.1816]
[1735921052629,3.2078,3589.8,3589.2,2.11890828]
[1735921052936,0.2788,3589.5,3589.2,2.11890828]
[1735921053139,2.7187,3589.7,3589.2,2.11890828]
[1735921053338,6.87732043,3589.6,3589.2,2.11890828]
[1735921053530,0.27881,3589.4,3588.9,5.10514828]
[1735921053731,6.87732043,3589.6,3588.9,2.11890828]
[1735921053939,0.27881,3589.4,3588.9,2.39774828]
[1735921054643,6.87732043,3589.6,3588.9,2.11890828]
[1735921054644,2.18668156,3589.1,3588.9,2.11890828]
[1735921054946,2.18668156,3589.1,3589.0,0.27883]
[1735921055243,1.68668156,3589.1,3589.0,2.85623]
[1735921055832,0.27879,3589.6,3589.2,0.27881]
[1735921056032,7.86260043,3589.8,3589.4,0.27879]
[1735921056335,0.27878,3589.7,3589.3,0.27881]
[1735921056535,4.37602043,3589.8,3589.2,2.11890828]
[1735921056737,0.2788,3589.5,3589.2,2.11890828]
[1735921056939,0.27879,3589.6,3589.2,2.39771828]
[1735921057133,0.27879,3589.6,3589.1,3.2078]
[1735921057134,0.41832796,3589.7,3589.1,3.2078]
[1735921057331,0.27879,3589.6,3589.1,3.2078]
[1735921057534,0.2788,3589.5,3589.1,3.48662]
[1735921057729,0.27879,3589.6,3589.2,0.27882]
[1735921058034,4.37602043,3589.8,3589.2,0.27882]
[1735921058233,4.37602043,3589.8,3589.1,3.2078]
[1735921058234,0.27878,3589.7,3589.1,3.48662]
[1735921058433,0.27881,3589.3,3589.1,3.2078]
[1735921058837,4.37602043,3589.8,3589.1,3.2078]
[1735921059441,4.37602043,3589.7,3589.2,0.27882]
[1735921059635,0.27879,3589.6,3589.2,0.27882]
[1735921060038,0.27881,3589.4,3589.0,0.27883]
[1735921060239,2.4982,3589.3,3588.9,2.11890828]
[1735921060542,5.1222,3589.3,3589.1,0.27882]
[1735921060743,5.1222,3589.3,3589.2,0.27882]
[1735921061043,3.2078,3589.8,3589.2,2.11890828]
[1735921061343,2.4701,3589.8,3589.2,2.11890828]
[1735921061540,2.74887,3589.8,3589.5,0.27879]
[1735921061841,0.27878,3589.7,3589.2,2.11890828]
[1735921062037,2.4701,3589.8,3589.3,0.27881]
[1735921062343,0.27879,3589.7,3589.3,0.27881]
[1735921062544,5.6779,3589.8,3589.2,2.11890828]
[1735921062839,0.2788,3589.5,3589.2,2.39772828]
[1735921063045,5.6779,3589.8,3589.2,2.39772828]
[1735921063645,0.27879,3589.6,3589.2,2.39772828]
[1735921063836,5.6779,3589.8,3588.9,2.11890828]
[1735921064036,2.4701,3589.8,3588.9,2.11890828]
[1735921064347,0.27879,3589.6,3589.2,0.27881]
[1735921064547,2.4701,3589.8,3589.2,2.11890828]
[1735921064743,0.27887,3588.6,3588.4,2.946]
[1735921065047,5.32670828,3589.3,3588.2,0.2789]
[1735921065048,3.2078,3588.8,3588.2,0.2789]
[1735921065240,3.2078,3588.8,3588.1,3.2078]
[1735921065241,3.2078,3588.8,3588.7,0.27886]
[1735921065437,43.3791,3589.1,3588.7,0.27886]
[1735921065640,43.3791,3589.1,3588.8,0.27885]
[1735921065641,2.525,3589.0,3588.8,0.27885]
[1735921065841,2.525,3589.0,3588.6,2.11890828]
[1735921066148,2.525,3589.0,3588.8,0.27884]
[1735921066341,2.80384,3589.0,3588.6,2.11890828]
[1735921066753,2.80384,3589.0,3588.8,0.27885]
[1735921067435,2.525,3589.0,3588.9,0.27884]
[1735921067634,5.6959,3589.2,3588.7,3.2078]
[1735921067844,2.76692,3589.2,3589.0,0.27883]
[1735921068043,2.4881,3589.2,3588.7,5.7192]
[1735921068245,2.76692,3589.2,3589.0,0.27883]
[1735921068640,2.76692,3589.2,3588.7,5.7192]
[1735921068843,0.27883,3589.1,3588.8,0.27885]
[1735921069245,0.27883,3589.1,3588.7,5.7192]
[1735921069648,2.4881,3589.2,3588.7,5.7192]
[1735921069847,2.4881,3589.2,3588.7,3.2078]
[1735921070048,2.4881,3589.2,3588.3,2.11890828]
[1735921070348,0.27883,3589.1,3588.8,0.27885]
[1735921070548,0.27883,3589.1,3588.7,0.27885]
[1735921070748,0.27884,3589.0,3588.7,0.27885]
[1735921070946,2.4881,3589.2,3588.7,0.27885]
[1735921071140,0.27884,3589.0,3588.6,2.39776828]
[1735921071339,2.4881,3589.2,3588.9,0.27884]
[1735921071540,2.4881,3589.2,3588.6,5.32670828]
[1735921071541,2.76692,3589.2,3588.6,5.32670828]
[1735921071744,2.4881,3589.2,3588.6,5.32670828]
[1735921072139,2.4881,3589.2,3588.9,0.27883]
[1735921072343,2.4881,3589.2,3588.6,5.32670828]
[1735921072544,2.4881,3589.2,3589.0,0.27883]
[1735921073049,2.4881,3589.2,3588.6,5.32670828]
[1735921073244,2.4881,3589.2,3589.0,0.27883]
[1735921073855,2.76692,3589.2,3588.9,0.27884]
[1735921074049,2.4881,3589.2,3589.0,0.27883]
[1735921074443,2.4881,3589.2,3588.7,0.27886]
[1735921074643,2.4881,3589.2,3588.6,5.32670828]
[1735921075048,2.4881,3589.2,3588.9,0.27883]
[1735921075350,2.76692,3589.2,3588.6,5.32670828]
[1735921075551,2.76692,3589.2,3588.9,0.27884]
[1735921076948,2.4881,3589.2,3588.6,5.32670828]
[1735921077156,3.2078,3589.5,3588.9,2.11890828]
[1735921077353,3.2078,3589.5,3589.2,2.39771828]
[1735921077554,0.27881,3589.4,3589.2,2.11890828]
[1735921077750,0.27881,3589.4,3589.1,0.27882]
[1735921077951,0.27883,3589.1,3588.8,0.27884]
[1735921078255,0.27882,3589.2,3588.9,0.27884]
[1735921079054,0.2788,3589.4,3588.8,0.27884]
[1735921079256,0.27882,3589.2,3588.7,0.27886]
[1735921079452,0.27881,3589.3,3589.0,0.27883]
[1735921079658,0.27882,3589.2,3588.9,0.27884]
[1735921080149,40.8,3589.3,3588.6,5.32670828]
[1735921080357,3.2078,3589.1,3588.6,3.2078]
[1735921080561,3.48662,3589.2,3588.9,0.27884]
[1735921080757,2.11890828,3589.1,3587.8,3.2078]
[1735921080952,5.32670828,3588.7,3587.8,3.2078]
[1735921081157,7.8062,3588.6,3588.5,0.27887]
[1735921083157,7.8062,3588.6,3588.1,2.11890828]
[1735921083358,7.8062,3588.6,3588.5,0.27887]
[1735921083561,7.8062,3588.6,3588.1,2.11890828]
[1735921083758,7.8062,3588.6,3588.5,0.27887]
[1735921084261,7.8062,3588.6,3588.1,2.11890828]
[1735921084465,7.8062,3588.6,3588.5,0.27887]
[1735921084661,8.08507,3588.6,3588.5,0.27887]
[1735921084863,8.08507,3588.6,3588.4,0.27888]
[1735921085066,8.08507,3588.6,3588.5,0.27887]
[1735921086265,0.27888,3588.5,3588.4,0.27887]
[1735921086465,7.8062,3588.6,3588.1,2.11890828]
[1735921086766,4.58321888,3589.2,3588.6,2.946]
[1735921086960,6.5356435,3589.6,3589.5,0.27879]
[1735921087157,6.5356435,3589.6,3589.5,5.60549828]
[1735921088062,2.5737,3590.6,3589.5,8.27270828]
[1735921088363,0.27877,3589.8,3589.6,2.6467]
[1735921088571,3.2078,3589.7,3589.5,2.946]
[1735921088769,0.27879,3589.6,3589.5,2.946]
[1735921088967,5.2034,3589.6,3588.9,2.455]
[1735921089163,3.2078,3589.2,3588.6,2.11890828]
[1735921089362,3.2078,3589.2,3588.5,0.27887]
[1735921089665,0.27884,3589.0,3588.6,0.27886]
[1735921089869,3.2078,3589.2,3588.6,2.11890828]
[1735921090169,0.27883,3589.0,3588.6,2.39776828]
[1735921090465,0.27883,3589.0,3588.6,0.27886]
[1735921091365,3.2078,3589.2,3588.5,0.27887]
[1735921091570,0.27883,3589.0,3588.6,0.27886]
[1735921091770,3.2078,3589.2,3588.4,5.1136]
[1735921091959,0.27883,3589.1,3588.4,5.1136]
[1735921092358,3.2078,3589.2,3588.4,5.1136]
[1735921092760,0.27883,3589.1,3588.7,0.27885]
[1735921092963,0.69724921,3589.1,3588.7,0.27885]
[1735921093160,3.2078,3588.8,3587.6,2.946]
[1735921093364,0.27891,3588.0,3587.6,0.27894]
[1735921093569,0.27894,3587.6,3587.1,0.27898]
[1735921094167,40.8,3587.6,3587.0,2.946]
[1735921094361,0.27897,3587.3,3586.8,5.4427]
[1735921094567,3.2078,3587.3,3586.2,6.1538]
[1735921094768,2.6442,3587.2,3586.8,0.279]
[1735921095169,2.6442,3587.2,3586.7,0.27901]
[1735921095375,2.5562,3587.1,3586.8,0.279]
[1735921095566,2.5562,3587.1,3586.7,0.27901]
[1735921095766,2.5562,3587.1,3586.5,2.68620025]
[1735921095767,2.5562,3587.1,3586.8,0.279]